Cogmind - Beta 11 X6 @@@ ROGUE MODE // 2021.07.17 @ 03:02:06 Player: Runia Result: Self-destructed Performance ------------- Evolutions (2) 1000 Regions Visited (4) 800 Robots Destroyed (25) 125 Value Destroyed (490) 490 Prototype IDs (4) 80 Alien Tech Used (0) 0 Bonus (0) 0 TOTAL SCORE: 2495 Bonus ------- None Cogmind --------- Core Integrity 505/550 Matter 270/300 Energy 160/160 System Corruption 0% Temperature Warning (342) Movement Hovering (48) Location -8/Materials Parts ------- > --- POWER (1) -------- Light Nuclear Core > --- PROPULSION (4) --- Airjet Airjet Airjet Airjet > --- UTILITY (3) ------ Cryofiber Web Medium Storage Unit > --- WEAPON (3) ------- Spread Laser Improved Medium Laser Improved Medium Laser > --- INVENTORY (10) --- Deuterium Engine Improved Hover Unit Machine Analyzer Medium Armor Plating Medium Armor Plating Heavy EM Pulse Gun Particle Gun Improved Medium Laser Improved Medium Laser Grenade Launcher Peak State ------------ > --- POWER ------------ Light Nuclear Core > --- PROPULSION ------- Airjet Airjet Airjet Airjet > --- UTILITY ---------- Cryofiber Web Improved Heat Sink Medium Storage Unit > --- WEAPON ----------- Spread Laser Improved Medium Laser Improved Medium Laser > --- INVENTORY -------- Deuterium Engine Improved Hover Unit Machine Analyzer Medium Armor Plating Medium Armor Plating Particle Gun Improved Medium Laser Improved Medium Laser Grenade Launcher [Rating: 32] Favorites ----------- Power Ion Engine Engine Ion Engine Power Core Light Nuclear Core Propulsion Aluminum Leg Leg Aluminum Leg Hover Unit Airjet Utility Improved Heat Sink Device Improved Heat Sink Storage Small Storage Unit Protection Medium Armor Plating Weapon Improved Medium Laser Energy Gun Improved Medium Laser Ballistic Gun Assault Rifle Launcher Grenade Launcher Build | -11 -10 -10 -9 -8 ------- Run | Scr Mat Min Mat Mat Slots Evolved 4 | . . . 2 2 Power . | . . . . . Propulsion 2 | . . . 1 1 Utility 1 | . . . 1 . Weapon 1 | . . . . 1 Parts Attached 27 | . 7 3 14 3 Power 2 | . . 1 . 1 Engine 1 | . . 1 . . Core 1 | . . . . 1 Reactor . | . . . . . Propulsion 12 | . 2 2 7 1 Treads . | . . . . . Leg 8 | . 2 2 4 . Wheel . | . . . . . Hover 4 | . . . 3 1 Flight . | . . . . . Utility 7 | . 2 . 5 . Device 5 | . 2 . 3 . Storage 1 | . . . 1 . Processor . | . . . . . Hackware . | . . . . . Protection 1 | . . . 1 . Artifact . | . . . . . Weapon 6 | . 3 . 2 1 Energy Gun 4 | . 1 . 2 1 Energy Cannon . | . . . . . Ballistic Gun 1 | . 1 . . . Ballistic Cannon . | . . . . . Launcher 1 | . 1 . . . Special Weapon . | . . . . . Impact Weapon . | . . . . . Slashing Weapon . | . . . . . Piercing Weapon . | . . . . . Special Melee Weapon . | . . . . . Unidentified Prototypes 1 | . . . 1 . Parts Lost . | . . . . . Power . | . . . . . Propulsion . | . . . . . Utility . | . . . . . Weapon . | . . . . . Highest Loss Streak . | . . . . . Average Slot Usage (%) 98 | . 98 100 98 94 Engine 11 | . 14 14 11 . Leg 26 | . 28 28 28 . Hover 3 | . . . 4 36 Device 15 | . 12 14 17 12 Storage 12 | . 14 14 11 9 Protection 1 | . . . 3 . Energy Gun 16 | . 14 14 18 27 Ballistic Gun 8 | . 14 14 3 . Naked Turns . | . . . . . Heaviest Build 29 | 12 13 14 29 26 Greatest Support 32 | 20 20 20 30 32 Greatest Overweight (x) 2 | . . . 2 . Average Overweight (x) . | . . . . . Largest Inventory Capacity 10 | . 8 8 10 10 Average Capacity 8 | . 8 8 9 10 Most Carried 10 | . 8 8 10 10 Average Carried 7 | . 7 7 8 9 Final Capacity 10 | 8 8 8 10 10 Final Carried 10 | 6 8 8 10 10 Class Distribution -------------------- 51% | Mutant 44% | Scavenger-Mutant 4% | Gunner Dominant Class ---------------- Mutant | -10/Materials Mutant | -10/Mines Scavenger-Mutant | -9/Materials Gunner | -8/Materials Resources | -11 -10 -10 -9 -8 ----------- Run | Scr Mat Min Mat Mat Matter Collected 636 | 200 164 72 200 . Remotely . | . . . . . Salvage Created 930 | . 391 119 420 . Parts 50 | . 15 8 27 . Haulers Intercepted 4 | . . . 4 . Recyclers Shooed 4 | . 1 . 3 . Parts Field Recycled . | . . . . . Retrieved Matter . | . . . . . Parts Self-Destructed . | . . . . . Prevented . | . . . . . Kills | -11 -10 -10 -9 -8 ------- Run | Scr Mat Min Mat Mat Combat Hostiles Destroyed 14 | . 4 4 6 . Guns 14 | . 4 4 6 . Classes Destroyed 9 | . 4 1 4 . Worker 1 | . . . 1 . Builder 1 | . . . 1 . Hauler 4 | . . . 4 . Recycler 2 | . 2 . . . Operator 1 | . 1 . . . Watcher 2 | . 1 . 1 . Swarmer 5 | . . 2 3 . Grunt 8 | . 4 2 2 . Sentry 1 | . . . 1 . Best Kill Streak 4 | . 3 2 4 . Combat Bots Only 3 | . 2 2 3 . Max Kills in Single Turn 1 | . 1 1 1 . Gunslinging . | . . . . . Exploded . | . . . . . Melee . | . . . . . Uniques/NPCs Destroyed . | . . . . . Combat | -11 -10 -10 -9 -8 -------- Run | Scr Mat Min Mat Mat Damage Taken 793 | . 227 182 148 236 Core 174 | . 41 39 49 45 Absorbed by Shields . | . . . . . Core Remaining (%) 85 | 100 . 68 87 . Volleys Fired 93 | . 29 18 38 8 Largest 3 | . 2 2 2 3 Hottest 177 | . 70 60 112 177 Shots Fired 187 | . 57 36 76 18 Gun 186 | . 56 36 76 18 Cannon . | . . . . . Launcher 1 | . 1 . . . Special . | . . . . . Kinetic 62 | . 28 18 16 . Thermal 124 | . 28 18 60 18 Explosive 1 | . 1 . . . Electromagnetic . | . . . . . Robot Hit Streak 10 | . 10 5 5 3 Robot Miss Streak 5 | . 5 3 4 5 Penetration Max . | . . . . . Secondary Targets . | . . . . . Shots Hit Robots 105 | . 35 22 37 11 Core Hits 47 | . 17 7 20 3 Critical Kills . | . . . . . Critical Parts Destroyed 1 | . . 1 . . Critical Strikes 6 | . 1 1 4 . Burn 5 | . 1 . 4 . Destroy 1 | . . 1 . . Melee Attacks . | . . . . . Impact . | . . . . . Slashing . | . . . . . Piercing . | . . . . . Sneak Attacks . | . . . . . Combat Hostiles . | . . . . . Follow-up Attacks . | . . . . . Damage Inflicted 1459 | . 477 263 575 144 Guns 1438 | . 456 263 575 144 Cannons . | . . . . . Explosions 21 | . 21 . . . Melee . | . . . . . Ramming . | . . . . . Kinetic 561 | . 293 163 105 . Thermal 877 | . 163 100 470 144 Explosive 21 | . 21 . . . Electromagnetic . | . . . . . Impact . | . . . . . Slashing . | . . . . . Piercing . | . . . . . Highest Corruption 2 | . . . 2 . Average Corruption 1 | . . . 1 . Corruption Purged . | . . . . . Effects 2 | . . . 2 . Message Errors 1 | . . . 1 . Energy Discharges 1 | . . . 1 . Overload Shots . | . . . . . Overflow Damage . | . . . . . Projectiles . | . . . . . Explosions . | . . . . . Melee . | . . . . . Knockbacks . | . . . . . Impact . | . . . . . Kinetic . | . . . . . Secondary . | . . . . . Self-Inflicted Damage 32 | . 32 . . . Shots 1 | . 1 . . . Rammed . | . . . . . Targets Rammed . | . . . . . Kicked . | . . . . . Crushed . | . . . . . Highest Temperature 411 | . 2 . 45 411 Average Temperature 94 | . 2 . 14 235 Received Heat Transfer 306 | . 108 57 24 117 Effects 4 | . . . . 4 Energy Bleed 2 | . . . . 2 Interference 2 | . . . . 2 Siege Activations . | . . . . . Robots Corrupted . | . . . . . Combat Hostiles . | . . . . . Parts Fried . | . . . . . Impact Corruptions . | . . . . . Robots Melted . | . . . . . Combat Hostiles . | . . . . . Parts Melted 6 | . 2 . 4 . Heat Transferred 2361 | . 555 225 1309 272 Parts Sabotaged . | . . . . . Parts Stolen . | . . . . . Parts Stripped . | . . . . . Power Chain Reactions . | . . . . . Missiles Intercepted . | . . . . . Alert | -11 -10 -10 -9 -8 ------- Run | Scr Mat Min Mat Mat Peak Influence 254 | . 254 136 253 48 Initial 52 | . . 21 52 43 Average 91 | . 90 43 114 47 Maximum Alert Level 1 | . 1 . 1 . Low Security (%) 92 | . 83 100 94 100 Level 1 7 | . 16 . 5 . Level 2 . | . . . . . Level 3 . | . . . . . Level 4 . | . . . . . Level 5 . | . . . . . High Security . | . . . . . Max Security . | . . . . . Squads Dispatched 2 | . 1 . 1 . Investigation . | . . . . . Extermination . | . . . . . Reinforcement 2 | . 1 . 1 . Assault . | . . . . . Garrison . | . . . . . Intercept . | . . . . . Construction Impeded . | . . . . . Haulers Reinforced . | . . . . . Active Scanning Responses . | . . . . . Cargo Convoy Interrupts . | . . . . . Stealth | -11 -10 -10 -9 -8 --------- Run | Scr Mat Min Mat Mat Distress Signals 5 | . . 1 4 . Communications Jammed . | . . . . . Distress Signals . | . . . . . Times Spotted 36 | . 15 4 13 4 Peak Tracking Total 5 | . 4 3 5 4 Tactical Retreats 2 | . . 1 1 . Traps | -11 -10 -10 -9 -8 ------- Run | Scr Mat Min Mat Mat Traps Triggered 2 | . . . 2 . Indirectly . | . . . . . Trap Hack Attempts . | . . . . . Triggered . | . . . . . Disarmed . | . . . . . Reprogrammed . | . . . . . Reused . | . . . . . Traps Extracted . | . . . . . Installed . | . . . . . Triggered . | . . . . . Machines | -11 -10 -10 -9 -8 ---------- Run | Scr Mat Min Mat Mat Machines Disabled 1 | . 1 . . . Max in Single Turn 1 | . 1 . . . Machines Sabotaged . | . . . . . Garrisons Compromised . | . . . . . Overloaded Fab Kills . | . . . . . Fab Network Shutdowns . | . . . . . Hacking | -11 -10 -10 -9 -8 --------- Run | Scr Mat Min Mat Mat Machines Accessed 8 | . 3 1 3 1 Terminals 7 | . 3 . 3 1 Fabricators . | . . . . . Repair Stations . | . . . . . Recycling Units . | . . . . . Scanalyzers . | . . . . . Garrison Access . | . . . . . Total Hacks 28 | . 13 1 11 3 Successful 14 | . 8 1 4 1 Failed 14 | . 5 . 7 2 Catastrophic 1 | . . . 1 . Database Lockouts . | . . . . . Manual 13 | . 7 . 5 1 Terminals 27 | . 13 . 11 3 Fabricators . | . . . . . Repair Stations . | . . . . . Recycling Units . | . . . . . Scanalyzers . | . . . . . Garrison Access . | . . . . . Terminal Hacks 9 | . 6 1 2 . Part Schematic 1 | . 1 . . . Prototype ID Bank 2 | . 2 . . . Open Door 1 | . . 1 . . Branch Access Points 1 | . 1 . . . Terminal Index 1 | . 1 . . . Locate Traps 2 | . . . 2 . Zone Layout 1 | . 1 . . . Fabricator Hacks . | . . . . . Repair Station Hacks . | . . . . . Recycling Unit Hacks . | . . . . . Scanalyzer . | . . . . . Garrison Access Hacks . | . . . . . Unauthorized Hacks 5 | . 2 . 2 1 Terminals 5 | . 2 . 2 1 Botnet 5 | . 2 . 2 1 Fabricators . | . . . . . Repair Stations . | . . . . . Recycling Units . | . . . . . Scanalyzers . | . . . . . Garrison Access . | . . . . . Data Cores Recovered . | . . . . . Used . | . . . . . Hacking Detections 7 | . 3 . 3 1 Full Trace Events . | . . . . . Feedback Events . | . . . . . Feedback Blocked . | . . . . . Robot Schematics Acquired . | . . . . . Robots Built . | . . . . . Matter . | . . . . . Time . | . . . . . Total Robot Build Rating . | . . . . . Part Schematics Acquired 1 | . 1 . . . Parts Built . | . . . . . Matter . | . . . . . Time . | . . . . . Total Part Build Rating . | . . . . . Parts Repaired . | . . . . . Time . | . . . . . Parts Recycled . | . . . . . Recycled Matter . | . . . . . Retrieved Matter . | . . . . . Retrieved Components . | . . . . . Parts Scanalyzed . | . . . . . Part Schematics Acquired . | . . . . . Parts Damaged . | . . . . . Bothacking | -11 -10 -10 -9 -8 ------------ Run | Scr Mat Min Mat Mat Used RIF Installer . | . . . . . Robots Hacked . | . . . . . Non-combat . | . . . . . Combat . | . . . . . Robot Hacks Applied . | . . . . . Relay Couplers Released . | . . . . . Robots Rewired . | . . . . . Allies Hacked . | . . . . . Hacks Repelled . | . . . . . Allies | -11 -10 -10 -9 -8 -------- Run | Scr Mat Min Mat Mat Total Allies . | . . . . . Largest Group . | . . . . . Highest-Rated Group . | . . . . . Highest-Rated Ally . | . . . . . Total Orders . | . . . . . Ally Attacks . | . . . . . Total Damage . | . . . . . Kills . | . . . . . Allies Corrupted . | . . . . . Allies Melted . | . . . . . Intel | -11 -10 -10 -9 -8 ------- Run | Scr Mat Min Mat Mat Robot Analysis Total . | . . . . . Derelict Logs Recovered . | . . . . . Drone Launches . | . . . . . Drone Recoveries . | . . . . . Exploration | -11 -10 -10 -9 -8 ------------- Run | Scr Mat Min Mat Mat Turns Passed 1429 | . 461 249 653 66 Spaces Moved 958 | 1 259 157 474 67 Core . | . . . . . Treads . | . . . . . Legs 765 | 1 259 157 348 . Wheels . | . . . . . Hover 193 | . . . 126 67 Flight . | . . . . . Fastest Speed 48 | 120 120 120 52 48 Average Speed 106 | 120 120 120 103 48 Slowest Speed 280 | 120 120 120 280 48 Overloaded Moves . | . . . . . Propulsion Burnouts . | . . . . . Robots Hopped . | . . . . . Cave-ins Triggered . | . . . . . Exploration Rate (%) 30 | 2 53 43 47 7 Regions Visited 4 Branch Regions 1 Pre-discovered Areas . | . . . . . Known Exits Taken 1 | . 1 . . . Unknown Exits Taken 3 | 1 . 1 1 . Scrap Searched . | . . . . . Spaces Dug . | . . . . . Terrain Destroyed 4 | . 4 . . . Melee . | . . . . . Projectile . | . . . . . AOE 4 | . 4 . . . Terrain Rammed . | . . . . . Walls Destroyed . | . . . . . Machines Disabled . | . . . . . Actions | -11 -10 -10 -9 -8 --------- Run | Scr Mat Min Mat Mat Total 1188 | . 355 183 564 86 Wait 56 | . 42 1 9 4 Move 954 | . 258 156 473 67 Hop . | . . . . . Pick Up 28 | . 10 1 14 3 Fast Attach 4 | . . . 4 . Attach 5 | . 2 . 1 2 Detach . | . . . . . Swap 18 | . 5 3 9 1 Drop 30 | . 9 4 16 1 Fire 93 | . 29 18 38 8 Melee . | . . . . . Ram . | . . . . . Kick . | . . . . . Crush . | . . . . . Escape Stasis . | . . . . . Rewire . | . . . . . Trap . | . . . . . Miscellaneous . | . . . . . Route ------- -11/Scrapyard -10/Materials (discovered 3 exits: *Mat / *Min x2) -10/Mines -9/Materials (discovered 3 exits: *Mat x2 / [*Min]) -8/Materials History --------- Turn | Location | Event 1 | -11/Scrapyard | Discovered new exit (range 0) 1 | -11/Scrapyard | Entered Materials 211 | -10/Materials | Identified exit to Mines 303 | -10/Materials | Build established: Mutant 395 | -10/Materials | Discovered new exit (range 16) 462 | -10/Materials | Entered Mines 487 | -10/Mines | Found the Drone Emporium 493 | -10/Mines | Found Prototype Device 700 | -10/Mines | Discovered new exit (range 8) 711 | -10/Mines | Entered Materials 711 | -9/Materials | Evolved 2 slots: Propulsion x1, Utility x1 753 | -9/Materials | Discovered new exit (range 15) 948 | -9/Materials | Build established: Scavenger-Mutant 1016 | -9/Materials | Discovered new exit (range 11) 1172 | -9/Materials | Discovered new exit (range 15) 1364 | -9/Materials | Entered another Materials area 1364 | -8/Materials | Evolved 2 slots: Propulsion x1, Weapon x1 1430 | -8/Materials | Self-destructed Last Messages --------------- Testing... Terminal linked with 0 systems. Awaiting botnet instructions. K-01 Serf collects debris. Dropped Ion Engine. Acquired Deuterium Engine. K-01 Serf collects debris. Acquired Machine Analyzer. Acquired Hvy. EM Pulse Gun. T-07 Excavator is excavating. K-01 Serf collects debris. Imp. Heat Sink severed. Critical hit (Burn: +37). Power failure averted by Cryofiber Web. Overheating: Energy bleed (-38). Overheating: System interference. Imp. Medium Laser temporarily disabled. Overheating: Energy bleed (-24). Overheating: System interference. Cryofiber Web temporarily disabled. Map ----- +----------------------------------------------------+ | ????????????????????????? ???????? | | ????????????????????????? ???????? | | ?????????????????????????? ???????? | | ??????????????????????????/###????? | | ?????????????????????????? #????? | | ?????????????????????????? #????? | | ??????????????????????????# #????? | | ???????????????????######## # #??? | | ???????????????????# + #??? | | ???????????????????# * !# # #??? | | ???????????????????# # #????? | | ???????????????????# # #????? | | ???????????????????# * # #????? | | ???????????????????# # #????? | | ???????????????????#+###### #????? | | ???????????????###?# #????# #????? | | ??????????????##!!## ##???# #????? | | ??????????????#! ##### #????? | | ??????????????#! T #????? | | ??????????????#! ######;###??? | | ??????????????#! ## ##?# #??? | | ??????????????##!!?# #??#gg""" #??? | | ???????????????##??# #??# """ #??? | | ??????????????######+#### """ #??? | | ??????????????# !! [#l #??? | | ??????????????# !! #@ ! #??? | | ??????????????# !! / ########??? | | ??????????????# #?????????? | | ??????????????# """ """ #?????????? | | ??????????????# """ """ #?????????? | | ??????????????# """ """ #?????????? | | ??????????????# #?????????? | | ????????###+######+######?????????? | | ???????# #???????????? | | ???????# #???????????? | | ???????# #???????????? | | ???????# ############???????????? | | ???????#??????????????????????????? | | ??????????????????????????????????? | | ??????????????????????????????????? | | ??????????????????????????????????? | | ??????????????????????????????????? | | ??????????????????????????????????? | | ??????????????????????????????????? | | ??????????????????????????????????? | | ??????????????????????????????????? | | ??????????????????????????????????? | | ??????????????????????????????????? | | ??????????????????????????????????? | | ??????????????????????????????????? | +----------------------------------------------------+ Best States ------------- Heat Dissipation 45 Energy Generation 14 Energy Capacity 250 Matter Stores 300 Matter Capacity 300 Sight Range 16 Terrain Scan Density 10 Base Temperature (-) 100 Armor Coverage 225 Evasion (%) 55 Item Schematics ----------------- Aluminum Leg | -10/Materials | Hacked Robot Schematics ------------------ None Fabricated ------------ Nothing Alien Tech Used ----------------- None Achievements -------------- None Challenges ------------ None Game ------ Seed AdvancedStorageTrap Manual? 0 Play Time 00:13:59 Cumulative 239.2 hours Start 2021.07.17 @ 02:49:25 End 2021.07.17 @ 03:02:06 Sessions 1 Manual Loads 0 Difficulty Rogue Special Mode None Game No. 293 Rogue 293 Adventurer 0 Explorer 0 Win Type - Total 3 Types 3/0/0/0/0/0/0/0/0 Lore% 64 Gallery% 80 Achievement% 59 Wizard Run 0 Options --------- ASCII 0 Keyboard 0 Movement Mouse Keybinds 1 Fullscreen 2 Font 24/Smallcaps Map View 76x50 Tactical HUD 1 Map Filters NONE Filters NONE Steam 1 RUN: f92d66e2-a455-4599-935a-40d31b59304d